bitfinex-derivatives/quotes_ETHF0:USTF0_20251003
["timestamp","ask_amount","ask_price","bid_price","bid_amount"]
[1759515916618,0.4359,4497.6,4497.5,0.2548]
[1759515916912,0.8677,4497.6,4497.5,1.0707]
[1759515917112,0.8677,4497.6,4497.5,1.2957]
[1759515917419,3.79236135,4497.6,4497.5,1.7168]
[1759515917613,3.79236135,4497.6,4497.5,1.9418]
[1759515917818,3.8229969,4497.6,4497.5,1.9418]
[1759515918020,2.9552969,4497.6,4497.5,1.9418]
[1759515918321,3.8229969,4497.6,4497.5,1.9418]
[1759515918519,0.03063555,4497.6,4497.5,1.9418]
[1759515920914,0.03063555,4497.6,4497.5,6.9418]
[1759515921112,0.40159787,4498.6,4498.5,1.0853]
[1759515921318,0.40159787,4498.6,4498.5,1.9564]
[1759515921510,3.26749669,4498.6,4498.5,1.9564]
[1759515921715,4.13519669,4498.6,4498.5,1.9564]
[1759515922113,3.69929669,4498.6,4498.5,1.9564]
[1759515922422,3.77306431,4498.6,4498.5,1.9564]
[1759515922924,0.40159787,4498.6,4498.5,1.9564]
[1759515923418,0.90725581,4498.6,4498.5,1.9564]
[1759515923619,0.40159787,4498.6,4498.5,1.9564]
[1759515924524,4.67635345,4498.6,4498.5,0.8711]
[1759515924818,9.99396,4499.6,4498.5,0.8711]
[1759515924819,0.2637,4499.5,4498.5,5.4944]
[1759515925016,0.6448,4499.4,4499.0,0.3998]
[1759515925219,0.2637,4499.5,4498.5,0.4944]
[1759515925220,0.39978,4499.3,4499.1,0.225]
[1759515925418,0.6448,4499.2,4499.1,0.225]
[1759515925614,0.4318,4499.2,4498.2,1.59423642]
[1759515925814,0.6448,4498.4,4497.9,1.59423642]
[1759515926023,0.6448,4498.3,4498.0,34.904]
[1759515926227,0.6448,4498.2,4498.1,0.39988]
[1759515928022,0.6448,4498.2,4498.1,0.225]
[1759515928822,1.86188,4498.2,4498.1,0.225]
[1759515929823,0.6168,4497.4,4497.3,1.59423642]
[1759515930019,0.6168,4497.4,4497.3,35.30195]
[1759515930930,0.8737,4498.0,4497.9,0.3999]
[1759515931123,0.8737,4498.0,4497.3,0.39995]
[1759515931124,0.6168,4497.4,4497.3,0.39995]
[1759515931426,0.6889,4497.0,4496.8,0.17741805]
[1759515931628,0.6889,4497.0,4496.9,0.226]
[1759515931830,0.2569,4497.0,4496.9,0.226]
[1759515932031,0.8737,4497.0,4496.9,0.226]
[1759515932225,1.2891,4497.0,4496.9,0.226]
[1759515932425,0.8694,4497.5,4497.4,0.39994]
[1759515932729,0.2569,4497.5,4497.4,0.62594]
[1759515933025,0.6125,4497.9,4497.8,0.39991]
[1759515933216,0.6125,4497.9,4497.8,0.62591]
[1759515934829,1.449,4497.9,4497.8,0.62591]
[1759515935024,1.2824,4497.5,4497.4,0.39994]
[1759515935224,1.0279,4496.9,4496.8,0.57369181]
[1759515935431,1.0279,4496.9,4496.8,0.79969181]
[1759515935625,0.6125,4496.9,4496.8,0.79969181]
[1759515935826,0.6125,4496.9,4496.8,2.39392823]
[1759515936128,0.6125,4496.9,4496.8,2.16792823]
[1759515936425,0.6125,4496.9,4496.8,37.07192823]
[1759515936926,0.2545,4497.5,4496.8,37.07192823]
[1759515936927,0.2545,4497.5,4497.4,0.39994]
[1759515937126,0.2545,4497.5,4497.4,0.62594]
[1759515937526,0.3304,4497.5,4497.4,0.62594]
[1759515937720,0.2569,4498.0,4497.9,0.3999]
[1759515937925,0.2569,4498.0,4497.9,0.6259]
[1759515938128,1.0934,4498.0,4497.9,0.6259]
[1759515939031,0.6723,4498.0,4497.9,0.6259]
[1759515939224,0.2569,4498.0,4497.9,0.6259]
[1759515939630,1.7059,4498.0,4497.9,0.6259]
[1759515939827,0.6791,4498.5,4498.4,0.39986]
[1759515940032,0.6791,4498.5,4498.4,0.62586]
[1759515940430,1.2916,4498.5,4498.4,0.62586]
[1759515941135,1.7035,4499.0,4498.9,0.39981]
[1759515941332,1.7035,4499.0,4498.9,0.62581]
[1759515941736,1.7035,4499.0,4498.9,0.226]
[1759515943532,0.00246519,4499.2,4499.0,0.3998]
[1759515943734,1.0279,4499.1,4499.0,0.3998]
[1759515944135,1.449,4499.1,4499.0,0.3998]
[1759515945240,1.0279,4498.7,4498.6,36.67240112]
[1759515945441,1.0279,4498.7,4498.6,35.30284]
[1759515945636,0.4154,4498.4,4498.3,1.99542112]
[1759515945832,0.6125,4498.4,4498.3,2.22142112]
[1759515947639,0.2545,4498.5,4498.3,2.22142112]
[1759515948044,0.6125,4498.7,4498.6,0.39984]
[1759515949240,1.449,4498.7,4498.6,0.39984]
[1759515949636,1.449,4498.7,4498.6,0.62584]
[1759515950641,1.449,4498.4,4498.3,0.39986]
[1759515950836,1.449,4498.4,4498.3,0.62586]
[1759515952941,1.0279,4498.4,4498.3,0.62586]
[1759515953142,1.449,4498.4,4498.3,0.62586]
[1759515953942,1.449,4498.4,4498.3,0.39986]
[1759515954137,0.867,4499.5,4499.4,0.39977]
[1759515954446,1.091,4500.0,4499.9,0.81562]
[1759515954643,1.091,4500.0,4499.9,1.04062]
[1759515955140,1.09325561,4500.0,4499.9,1.04322767]
[1759515955842,1.09325561,4500.0,4499.9,1.21669976]
[1759515956238,0.00225561,4500.0,4499.9,2.22289976]
[1759515956443,1.70575561,4500.0,4499.9,1.21669976]
[1759515957646,0.39955,4501.9,4500.0,0.263]
[1759515957843,0.022,4502.9,4501.5,0.263]
[1759515958146,2.85506012,4502.2,4501.8,0.39955]
[1759515958349,0.39954,4502.0,4501.7,0.6048]
[1759515958549,2.85506012,4502.1,4501.7,1.00435]
[1759515958744,0.39954,4502.0,4501.7,1.00435]
[1759515958950,0.0019134,4502.1,4501.9,1.00434]
[1759515959146,0.0019134,4502.1,4501.5,0.8678]
[1759515959451,2.93061765,4502.0,4501.6,0.59957]
[1759515959744,3.92947765,4502.0,4501.1,0.6048]
[1759515959950,0.3996,4501.3,4501.2,0.219]
[1759515960351,0.39956,4501.8,4501.2,0.225]
[1759515960550,2.93061765,4502.0,4501.3,1.0044]
[1759515960750,0.3996,4501.3,4501.2,0.225]
[1759515960944,0.39959,4501.4,4501.2,0.6246]
[1759515961144,0.39957,4501.6,4501.4,0.39959]
[1759515961345,3.27265597,4501.8,4501.7,0.39956]
[1759515961550,0.0019134,4502.1,4501.7,1.22936]
[1759515961750,0.39955,4501.9,4501.8,0.6048]
[1759515962552,0.39954,4502.0,4501.9,0.6421]
[1759515962954,3.33016076,4502.0,4501.9,0.6421]
[1759515963651,3.33016076,4502.0,4501.7,0.62456]
[1759515963652,0.39954,4501.9,4501.7,0.225]
[1759515963854,0.99889,4501.8,4501.1,0.6421]
[1759515964052,2.83221668,4501.8,4501.0,0.9051]
[1759515964257,2.83221668,4501.8,4501.5,0.2413]
[1759515964457,0.39957,4501.7,4501.6,0.6421]
[1759515964754,3.32339267,4501.7,4501.6,0.6421]
[1759515965258,2.92382267,4501.7,4501.6,0.6421]
[1759515965647,0.39956,4501.8,4501.6,0.6421]
[1759515965852,0.39957,4501.7,4501.6,0.39957]
[1759515966052,2.85049939,4501.7,4501.6,1.47207]
[1759515966253,0.39956,4501.8,4501.7,0.6421]
[1759515966453,0.39956,4501.8,4501.7,0.8671]
[1759515966659,3.25005939,4501.8,4501.7,0.8671]
[1759515967659,0.39957,4501.6,4501.5,0.2413]
[1759515967861,0.39957,4501.6,4501.5,1.1084]
[1759515968561,2.85049939,4501.8,4501.6,0.6421]
[1759515968862,0.39957,4501.7,4501.6,0.39957]
[1759515969057,2.86876351,4501.9,4501.8,0.6421]
[1759515969265,0.0019134,4502.1,4502.0,1.7198]
[1759515970359,1.77095337,4504.7,4502.8,1.87797]
[1759515970360,0.99845,4503.8,4502.8,1.87797]
[1759515970663,0.39942,4503.3,4502.8,2.10297]
[1759515970959,0.99834,4504.3,4502.8,2.10297]
[1759515971160,0.99841,4504.0,4502.8,1.7035]
[1759515971361,0.006,4504.4,4502.8,1.87797]
[1759515971362,0.02470699,4502.9,4502.8,1.87797]
[1759515971562,0.02470699,4502.9,4502.8,2.10297]
[1759515971959,0.00270699,4502.9,4502.8,2.10297]
[1759515972159,0.39936,4504.0,4503.9,0.4304]
[1759515972359,0.39934,4504.2,4504.0,0.2413]
[1759515972563,0.39934,4504.2,4504.0,0.8834]
[1759515972762,0.39943,4503.2,4503.1,0.6421]
[1759515973060,0.4013375,4503.2,4503.1,1.07429125]
[1759515973361,0.0019075,4503.2,4503.1,1.48029125]
[1759515973659,0.0019075,4503.2,4503.1,1.70529125]
[1759515974265,1.99598,4505.9,4504.1,0.6421]
[1759515974266,0.39933,4504.4,4504.1,0.6421]
[1759515974455,0.99805,4505.6,4504.5,0.6717]
[1759515974767,0.99804,4505.7,4504.6,0.6421]
[1759515974768,0.3993,4504.7,4504.6,0.6421]
[1759515975266,0.39935,4504.1,4504.0,0.2413]
[1759515975460,0.39935,4504.1,4504.0,0.4533]
[1759515975665,3.33475222,4504.1,4504.0,1.3138]
[1759515975966,3.33475222,4504.1,4504.0,0.8834]
[1759515976269,0.39937,4503.9,4503.6,1.0481]
[1759515976466,0.39937,4503.9,4503.8,1.4785]
[1759515976864,3.34596045,4503.9,4503.8,1.2975]
[1759515977064,3.34596045,4503.9,4503.8,1.0725]
[1759515977267,3.34596045,4503.9,4503.8,1.2975]
[1759515978156,0.40146859,4504.7,4504.6,0.6421]
[1759515978361,0.40146859,4504.7,4504.6,1.0725]
[1759515978556,3.3349798,4504.7,4504.6,1.0725]
[1759515978764,3.3349798,4504.7,4504.6,1.4785]
[1759515978964,2.9356798,4504.7,4504.6,1.4785]
[1759515979360,2.9356798,4504.7,4504.1,1.0725]
[1759515979561,0.39933,4504.4,4504.3,0.6421]
[1759515979963,3.22705491,4504.4,4504.3,0.8671]
[1759515980164,2.82772491,4504.4,4504.3,1.2975]
[1759515980564,0.39932,4504.5,4504.3,0.8671]
[1759515980773,0.39932,4504.5,4504.0,0.8834]
[1759515980774,0.39935,4504.1,4504.0,0.8834]
[1759515981066,0.39935,4504.1,4504.0,1.1084]
[1759515981266,3.31658385,4504.1,4504.0,1.9448]
[1759515981864,2.91723385,4504.1,4504.0,1.9448]
[1759515982266,0.39934,4504.2,4504.1,0.6421]
[1759515982568,3.23946014,4504.2,4504.1,1.4785]
[1759515982964,3.23946014,4504.2,4504.1,1.2975]
[1759515983567,3.23946014,4504.2,4504.1,1.7035]
[1759515984767,0.39939,4503.6,4503.5,0.2413]
[1759515984961,1.20853,4503.2,4503.1,0.43219125]
[1759515985268,4.50795554,4503.2,4503.1,0.00179125]
[1759515985663,2.89822554,4503.2,4503.1,5.83819125]
[1759515985868,0.01,4504.2,4504.1,0.8364]
[1759515986171,0.01,4504.2,4504.1,1.0614]
[1759515986669,0.4158,4504.2,4504.1,1.7035]
[1759515986868,0.8191,4504.2,4504.1,1.7035]
[1759515987069,3.67692515,4504.2,4504.1,1.7035]
[1759515987270,3.67692515,4504.2,4504.1,1.2975]
[1759515987668,3.67692515,4504.2,4504.1,1.7325]
[1759515988276,3.67692515,4504.2,4504.1,1.5075]
[1759515988474,3.67692515,4504.2,4504.1,1.7325]
[1759515988770,0.3992,4503.8,4503.7,0.6166]
[1759515988968,0.8278,4503.8,4503.7,0.8416]
[1759515989170,3.77557373,4503.8,4503.7,0.6166]
[1759515989369,4.16227373,4503.8,4503.7,0.8416]
[1759515989564,0.3867,4505.4,4505.0,0.39926]
[1759515989764,0.3867,4505.8,4505.2,0.6166]
[1759515989968,0.49811498,4505.7,4505.2,0.6166]
[1759515990173,2.92663188,4505.3,4505.0,0.8701]
[1759515990366,0.39926,4505.2,4505.1,0.7406]
[1759515990671,3.32851377,4505.2,4505.1,0.7406]
[1759515990870,0.40188189,4505.2,4505.1,0.8416]
[1759515991072,0.00262189,4505.2,4505.1,0.8416]
[1759515991279,0.03322702,4505.2,4505.1,0.6166]
[1759515991475,0.03322702,4505.2,4505.1,0.8416]
[1759515991674,0.39926,4505.1,4504.9,0.79804814]
[1759515991878,0.78596,4505.1,4505.0,0.225]
[1759515992071,0.39926,4505.1,4505.0,0.8342]
[1759515992269,3.34258369,4505.1,4505.0,1.0875]
[1759515992470,0.3993,4504.7,4504.6,0.6092]
[1759515992676,2.94332369,4505.1,4504.6,0.225]
[1759515993070,0.39929,4504.8,4504.7,0.8342]
[1759515993271,0.42989513,4504.8,4504.7,0.8342]
[1759515993476,3.26900661,4504.8,4504.7,0.8342]
[1759515993674,0.39935,4504.1,4504.0,0.8627]
[1759515993974,3.66610631,4504.1,4504.0,0.225]
[1759515994173,3.66610631,4504.1,4504.0,0.8342]
[1759515994374,3.28901144,4504.1,4504.0,0.8342]
[1759515994778,0.39939,4503.6,4503.5,0.8505]
[1759515995082,0.39939,4503.6,4503.5,1.0755]
[1759515995375,0.42999513,4503.6,4503.5,0.8505]
[1759515995581,0.42999513,4503.6,4503.5,1.0755]
[1759515996369,0.42999513,4503.6,4503.5,0.8505]
[1759515996578,3.37397907,4503.6,4503.5,1.0055]
[1759515996776,3.79907907,4503.6,4503.5,1.4397]
[1759515997079,4.22077907,4503.6,4503.5,1.4397]
[1759515997275,4.71729109,4503.6,4503.5,1.4397]
[1759515997675,4.22077907,4503.6,4503.5,1.4397]
[1759515997969,4.22077907,4503.6,4503.5,0.8505]
[1759515998277,1.65393,4503.2,4503.1,0.00179125]
[1759515998479,2.15046745,4503.2,4503.1,0.00179125]
[1759515998670,5.03513716,4503.2,4503.1,0.00179125]
[1759515998875,0.39948,4502.6,4502.5,0.2533]
[1759515999083,1.24628,4502.6,4502.5,1.5217]
[1759515999380,4.13772846,4502.6,4502.5,1.2967]
[1759515999681,4.65712713,4502.6,4502.5,1.2967]
[1759515999882,4.65712713,4502.6,4502.5,1.52337572]
[1759516000182,4.16002665,4502.6,4502.5,1.29837572]
[1759516000378,5.06484542,4502.6,4502.5,0.00167572]
[1759516000777,1.24635,4501.8,4501.7,1.0434]
[1759516000980,0.8468,4501.8,4501.7,1.2684]
[1759516001282,2.91395277,4501.8,4501.7,1.711]
[1759516001483,0.05290332,4502.6,4501.7,1.711]
[1759516001484,0.05290332,4502.6,4502.2,0.39952]
[1759516001676,0.47800332,4502.4,4502.3,0.225]
[1759516001870,0.94914851,4502.4,4502.3,1.1018]
[1759516002080,3.85999366,4502.4,4502.3,1.1018]
[1759516002382,3.78834847,4502.4,4502.3,1.711]
[1759516003379,4.21004847,4502.4,4502.3,1.711]
[1759516003573,1.65402,4502.2,4502.1,0.00236587]
[1759516003778,1.29922332,4502.2,4502.1,1.27076587]
[1759516003974,4.1358744,4502.2,4502.1,1.27076587]
[1759516004475,3.3146544,4502.2,4502.1,1.71336587]
[1759516005479,3.7363544,4502.2,4502.1,1.71336587]
[1759516005677,3.76695953,4502.2,4502.1,1.71336587]
[1759516006583,2.92015953,4502.2,4502.1,1.71336587]
[1759516006781,0.00207771,4502.6,4502.5,1.7393]
[1759516007377,0.42717771,4502.6,4502.5,1.7393]
[1759516007578,3.78835357,4502.6,4502.5,1.0875]
[1759516007879,2.94155357,4502.6,4502.5,1.9643]
[1759516008078,0.00207771,4502.6,4502.5,1.9643]
[1759516008280,0.00207771,4502.6,4502.5,6.9643]
[1759516009391,0.00207771,4502.6,4502.5,36.3813]
[1759516009687,0.00207771,4502.6,4502.5,36.6063]
[1759516013186,0.4077,4503.7,4502.5,36.6063]
[1759516013187,0.4098,4505.0,4504.2,0.6092]
[1759516013492,3.23197836,4504.8,4504.6,0.6092]
[1759516013685,2.83268836,4504.8,4504.7,0.112]
[1759516013887,0.39928,4504.9,4504.8,0.6092]
[1759516014183,0.39931,4504.6,4504.5,0.8625]
[1759516014385,0.39935,4504.1,4504.0,0.8625]
[1759516014582,2.88054941,4504.6,4504.1,0.6092]
[1759516014783,3.27985941,4504.6,4504.5,0.8625]
[1759516014991,0.39931,4504.6,4504.5,0.8342]
[1759516015190,3.34368599,4504.6,4504.5,1.0875]
[1759516015381,3.75348599,4504.6,4504.5,0.6092]
[1759516015685,0.39935,4504.1,4504.0,0.8625]
[1759516015885,0.39935,4504.1,4504.0,1.0875]
[1759516016083,0.39933,4504.3,4504.1,0.6092]
[1759516016291,0.39935,4504.1,4504.0,0.4783]
[1759516016582,2.93058013,4504.2,4504.0,0.4783]
[1759516016787,2.32783843,4504.8,4504.7,1.0085]
[1759516016989,0.3992,4505.8,4505.6,0.6092]
[1759516017190,0.3992,4505.8,4505.7,0.8342]
[1759516017693,0.42979401,4505.8,4505.7,0.8342]
[1759516017891,0.43230337,4505.8,4505.7,1.0097118]
[1759516018295,0.03310337,4505.8,4505.7,1.0097118]
[1759516018595,2.9319037,4505.8,4505.7,0.7847118]
[1759516018891,2.9319037,4505.8,4505.7,0.79315191]
[1759516019282,3.3570037,4505.8,4505.7,1.22735191]
[1759516019887,3.7787037,4505.8,4505.7,1.04535191]
[1759516020087,3.7787037,4505.8,4505.7,1.27035191]
[1759516020296,3.3570037,4505.8,4505.7,1.48795191]
[1759516020592,3.3570037,4505.8,4505.7,1.71295191]
[1759516020989,0.03310337,4505.8,4505.7,1.71295191]
[1759516021184,1.40744,4507.5,4506.8,1.0518]
[1759516021385,0.39908,4507.2,4507.1,0.6092]
[1759516021585,3.74829717,4507.2,4507.0,0.2533]
[1759516021782,0.3991,4507.0,4506.6,0.6092]
[1759516021990,2.93941717,4507.2,4506.8,0.6164]
[1759516022185,2.88211867,4506.9,4506.8,0.6164]
[1759516022383,2.88211867,4507.0,4506.8,0.6164]
[1759516022590,0.39909,4507.0,4506.9,0.8414]
[1759516022784,0.39909,4507.0,4506.9,0.6164]
[1759516023090,0.39909,4507.0,4505.7,0.00195191]
[1759516023091,0.39916,4506.2,4506.1,0.6164]
[1759516023291,0.39915,4506.3,4506.2,0.6164]
[1759516023795,3.76421975,4506.3,4506.2,0.6164]
[1759516023990,3.76421975,4506.3,4506.2,0.8414]
[1759516024194,3.76421975,4506.3,4506.2,0.6164]
[1759516024391,3.32581975,4506.3,4506.2,0.8414]
[1759516024892,3.36506975,4506.3,4505.7,0.61835191]
[1759516025091,0.3992,4505.8,4505.7,0.61835191]
[1759516025291,0.3992,4505.8,4505.7,0.77835191]
[1759516025893,0.3992,4505.8,4505.7,0.84335191]
[1759516026090,0.39919,4505.9,4505.7,0.84335191]
[1759516026287,0.39919,4505.9,4505.8,0.6164]
[1759516026687,3.25234565,4505.9,4505.8,0.6164]
[1759516026998,4.14454565,4505.9,4505.8,0.8214]
[1759516027197,4.58294565,4505.9,4505.8,0.8414]
[1759516027897,4.14454565,4505.9,4505.8,1.2676]
[1759516028092,4.14454565,4505.9,4505.8,1.7219]
[1759516028692,3.68874565,4505.9,4505.8,1.7219]
[1759516028887,3.25234565,4505.9,4505.8,1.7219]
[1759516029092,0.39919,4505.9,4505.8,1.4969]
[1759516029292,0.4384,4506.6,4505.8,1.1055]
[1759516029594,0.83558,4506.0,4505.9,1.4969]
[1759516030898,0.4364,4506.0,4505.9,1.4969]
[1759516031792,0.8922,4505.8,4505.7,0.00195191]
[1759516032095,4.16079732,4505.8,4505.7,0.00195191]
[1759516032295,4.16079732,4505.8,4505.7,0.22695191]
[1759516033693,4.16079732,4505.8,4505.7,0.84335191]
[1759516035400,3.72239732,4505.8,4505.7,1.72385191]
[1759516036896,3.72239732,4505.8,4505.7,1.49885191]
[1759516037197,3.72239732,4505.8,4505.7,1.26955191]
[1759516037804,3.72239732,4505.8,4505.7,1.72385191]
[1759516038003,4.12159732,4505.8,4505.7,1.72385191]
[1759516038801,3.26659732,4505.8,4505.7,1.72385191]
[1759516039004,3.22939732,4505.8,4505.7,1.72385191]
[1759516039408,3.22939732,4505.8,4505.7,1.49885191]
[1759516039600,2.83019732,4505.8,4505.7,1.72385191]
[1759516039802,0.83557,4506.1,4506.0,1.7618]
[1759516040200,3.73421275,4506.1,4506.0,1.7618]
[1759516040401,4.19001275,4506.1,4506.0,1.7618]
[1759516041407,3.79084275,4506.1,4506.0,1.7618]
[1759516041705,2.89864275,4506.1,4506.0,2.38598]
[1759516042008,2.89864275,4506.1,4506.0,1.9868]
[1759516042504,3.33504275,4506.1,4506.0,1.9868]
[1759516043204,3.79084275,4506.1,4506.0,1.7618]
[1759516043399,3.33504275,4506.1,4506.0,1.9868]
[1759516043602,2.89864275,4506.1,4506.0,1.9868]
[1759516045204,3.33504275,4506.1,4506.0,1.9868]
[1759516045803,3.79084275,4506.1,4506.0,1.9868]
[1759516046103,3.79084275,4506.1,4506.0,1.5325]
[1759516046308,3.79084275,4506.1,4505.7,0.00195191]
[1759516046309,1.9335,4505.8,4505.7,0.00195191]
[1759516046498,1.9335,4505.8,4505.7,1.26955191]
[1759516046703,4.82485977,4505.8,4505.7,1.26955191]
[1759516047018,4.82485977,4505.8,4505.7,1.04455191]
[1759516047406,4.82485977,4505.8,4505.7,0.65315191]
[1759516048808,4.82485977,4505.8,4505.7,0.22695191]
[1759516049710,4.81185977,4505.8,4505.7,0.22695191]
[1759516050209,4.81185977,4505.8,4505.7,0.64815191]
[1759516050608,4.81185977,4505.8,4505.7,0.22695191]
[1759516050810,4.81185977,4505.8,4505.7,0.00195191]
[1759516051011,4.84245378,4505.8,4505.7,0.22695191]
[1759516051410,0.84999,4504.8,4504.7,1.0873]
[1759516051711,1.5267,4504.8,4504.7,1.3123]
[1759516051914,1.55729401,4504.8,4504.7,1.3123]
[1759516052309,4.49553417,4504.8,4504.7,1.7116]
[1759516052514,4.49553417,4504.8,4504.7,1.71434767]
[1759516052716,4.49553417,4504.8,4504.7,2.14354767]
[1759516052914,3.86643417,4504.8,4504.7,2.14354767]
[1759516055915,4.49173417,4504.8,4504.7,2.14354767]
[1759516056512,4.49173417,4504.8,4504.7,0.00274767]
[1759516056816,4.89102417,4504.8,4504.7,0.22774767]
[1759516057011,4.49173417,4504.8,4504.7,0.22774767]
[1759516057517,4.49173417,4504.8,4504.7,1.72304767]
[1759516057715,3.41953417,4504.8,4504.7,2.14464767]
[1759516058413,3.82923417,4504.8,4504.7,2.14464767]
[1759516058918,3.41953417,4504.8,4504.7,2.14464767]
[1759516059110,3.82923417,4504.8,4504.7,2.14464767]
[1759516059712,3.85982818,4504.8,4504.7,2.14464767]
[1759516061819,3.45012818,4504.8,4504.7,2.14464767]
[1759516063417,0.06118802,4504.8,4504.7,2.14464767]
[1759516065714,0.88578802,4504.8,4504.7,1.91964767]
[1759516066017,0.47608802,4504.8,4504.7,2.14464767]
[1759516066223,0.06118802,4504.8,4504.7,2.14464767]
[1759516066919,0.6253,4506.2,4504.7,6.10194767]
[1759516067219,0.2643,4506.5,4504.7,6.10194767]
[1759516067220,4.34852246,4506.1,4506.0,2.17147]
[1759516067416,3.75381647,4506.1,4506.0,2.39647]
[1759516067617,0.85519401,4506.1,4506.0,2.39647]
[1759516067822,3.75381647,4506.1,4506.0,2.39647]
[1759516068728,1.4499,4505.8,4505.7,0.3992]
[1759516068929,1.4499,4505.8,4505.3,0.6434]
[1759516068930,1.8491,4505.8,4505.3,0.6434]
[1759516069118,0.6253,4505.7,4505.6,0.39921]
[1759516069321,1.4499,4505.7,4505.6,1.49521]
[1759516069623,4.32028872,4505.7,4505.6,0.39921]
[1759516070018,4.32028872,4505.7,4505.6,0.62421]
[1759516070218,4.32028872,4505.7,4505.6,0.85181]
[1759516070426,4.32028872,4505.7,4505.6,1.7426]
[1759516070622,4.32028872,4505.7,4505.6,0.225]
[1759516070926,4.71949872,4505.7,4505.6,0.225]
[1759516071220,1.4499,4505.3,4505.2,0.39925]
[1759516071421,1.4499,4505.3,4505.2,1.07685]
[1759516071626,3.68267402,4505.3,4505.2,2.14185]
[1759516072121,0.03059401,4505.3,4505.2,2.14185]
[1759516072720,0.44549401,4505.3,4505.2,1.5176]
[1759516073025,1.48049401,4505.3,4505.2,2.14185]
[1759516073227,1.87973401,4505.3,4505.2,1.72025]
[1759516073725,1.48049401,4505.3,4505.2,1.7426]
[1759516073922,4.77186843,4505.3,4505.2,1.91685]
[1759516074130,4.77186843,4505.3,4505.2,2.14185]
[1759516074424,4.77186843,4505.3,4505.2,1.72025]
[1759516074827,4.37262843,4505.3,4505.2,1.72025]
[1759516075123,4.77186843,4505.3,4505.2,1.72025]
[1759516075527,4.77186843,4505.3,4505.2,1.49525]
[1759516075828,4.77186843,4505.3,4505.2,1.72025]
[1759516077229,4.80246244,4505.3,4505.2,1.321]
[1759516077531,4.80246244,4505.3,4505.2,1.096]
[1759516077720,4.80246244,4505.3,4505.2,1.72025]
[1759516078121,0.39928,4505.0,4504.9,0.4526]
[1759516078326,0.39927,4505.1,4505.0,0.39926]
[1759516078526,1.22387,4505.1,4505.0,0.39926]
[1759516078722,4.79871647,4505.1,4505.0,0.39926]
[1759516078927,4.79871647,4505.1,4505.0,0.62426]
[1759516079122,4.85990449,4505.1,4505.0,0.62426]
[1759516079329,1.84919,4504.9,4504.8,0.39929]
[1759516079625,4.69867689,4504.9,4504.8,0.225]
[1759516079826,4.69867689,4504.9,4504.8,0.62429]
[1759516080334,4.36057491,4504.9,4504.8,1.72029]
[1759516080633,3.73527491,4504.9,4504.8,2.14189]
[1759516082541,4.37237491,4504.9,4504.8,2.14189]
[1759516083341,4.38237491,4504.9,4504.8,2.14189]
[1759516084542,0.07118802,4504.9,4504.8,2.14189]
[1759516085334,0.99795,4506.1,4504.8,2.14189]
[1759516085335,1.499,4506.2,4506.1,1.24727]
[1759516085533,0.8619,4506.2,4506.1,1.47227]
[1759516085736,4.36604205,4506.2,4506.1,1.0731]
[1759516085934,4.36604205,4506.2,4506.1,1.7253]
[1759516086540,4.39663606,4506.2,4506.1,1.7253]
[1759516087537,4.39663606,4506.2,4506.1,0.6327]
[1759516087939,4.39663606,4506.2,4506.1,1.0599]
[1759516088140,4.39663606,4506.2,4505.6,0.99804]
[1759516088141,1.89819,4505.9,4505.8,1.4591]
[1759516088341,2.89763606,4506.2,4505.5,0.2559]
[1759516088342,0.6371,4505.8,4505.7,1.24731]
[1759516088533,0.89249401,4505.8,4505.7,2.12451]
[1759516088733,0.4391,4505.3,4505.2,1.0599]
[1759516088939,1.499,4505.3,4505.2,0.225]
[1759516089138,1.89824,4505.3,4505.2,0.225]
[1759516089440,1.89824,4505.3,4504.9,0.6522]
[1759516089441,1.89827,4505.0,4504.9,1.5003]
[1759516089643,1.499,4504.9,4504.8,1.45919]
[1759516089843,1.499,4504.9,4504.7,0.00274767]
[1759516089844,1.03639,4504.8,4504.7,0.00274767]
[1759516090042,1.03639,4504.8,4504.7,0.22774767]
[1759516090043,1.89829,4504.8,4504.7,0.22774767]
[1759516090242,4.35746129,4504.8,4504.7,0.22774767]
[1759516090540,4.3880553,4504.8,4504.7,0.00274767]
[1759516090738,4.3880553,4504.8,4504.7,0.22774767]
[1759516092641,4.3880553,4504.8,4504.7,0.00274767]
[1759516093147,4.3880553,4504.8,4504.7,0.22774767]
[1759516094346,4.3880553,4504.8,4504.7,0.00274767]
[1759516094541,4.3880553,4504.8,4504.7,0.22774767]
[1759516096242,4.3929026,4504.8,4504.7,0.22774767]
[1759516097352,4.7921926,4504.8,4504.7,0.22774767]
[1759516097648,4.7921926,4504.8,4504.7,0.00274767]
[1759516097849,4.7921926,4504.8,4504.7,0.22774767]
[1759516098350,4.3929026,4504.8,4504.7,0.62704767]
[1759516098541,4.3929026,4504.8,4504.7,2.12734767]
[1759516098736,0.03544131,4504.8,4504.7,2.12734767]
[1759516098945,0.6371,4505.7,4505.0,0.99818]
[1759516099247,4.43783873,4505.6,4505.5,1.50323]
[1759516099448,4.43783873,4505.6,4505.5,1.72823]
[1759516099643,1.499,4505.6,4505.5,0.225]
[1759516099954,1.26114,4505.3,4505.2,0.80695]
[1759516100141,1.26114,4505.3,4505.2,1.68415]
[1759516100342,4.75906183,4505.3,4505.2,1.68415]
[1759516100542,4.75906183,4505.3,4505.2,1.2849]
[1759516100750,1.89826,4505.1,4505.0,1.71506]
[1759516100950,1.89826,4505.1,4505.0,2.38046]
[1759516101449,0.8619,4505.1,4505.0,2.38046]
[1759516101841,0.8619,4505.9,4505.8,1.8995]
[1759516102039,0.8619,4505.9,4505.8,2.1245]
[1759516102240,0.8619,4505.9,4505.8,1.8995]
[1759516102444,1.499,4505.9,4505.8,2.1245]
[1759516102644,0.8619,4505.9,4505.8,2.1245]
[1759516103953,1.499,4506.2,4506.1,1.89947]
[1759516104248,4.44313338,4506.2,4506.1,1.89947]
[1759516104444,4.44313338,4506.2,4506.1,1.5003]
[1759516105447,4.44313338,4506.2,4506.1,1.7253]
[1759516106148,3.80603338,4506.2,4506.1,1.7253]